Cogmind - Beta 16 @@@ ROGUE MODE // 2026.01.01 @ 21:59:21 Player: Cart123 Result: Destroyed by RF-NG2(R) with Subdweller Beam Cannon Performance ------------- Evolutions (0) 0 Regions Visited (3) 600 Robots Destroyed (10) 50 Value Destroyed (366) 366 Prototype IDs (0) 0 Alien Tech Used (0) 0 Bonus (0) 0 TOTAL SCORE: 1016 Bonus ------- None Cogmind --------- Core Integrity 0/250 Matter 282/300 Energy 123/125 System Corruption 3% Temperature Cool (10) Movement Walking (190) Ox1 Location -10/Subcaves Parts ------- > --- POWER (1) -------- Light Ion Engine > --- PROPULSION (2) --- Aluminum Leg > --- UTILITY (2) ------ Small Storage Unit > --- WEAPON (2) ------- Small Laser Assault Rifle > --- INVENTORY (8) ---- Medium Laser Assault Rifle Mining Laser Peak State ------------ > --- POWER ------------ Light Nuclear Core > --- PROPULSION ------- Wheel Wheel > --- UTILITY ---------- Small Storage Unit Improved Terrain Scanner > --- WEAPON ----------- Small Laser Particle Gun > --- INVENTORY -------- Light Ion Engine Assault Rifle Assault Rifle Grenade Launcher Mining Laser [Rating: 12] Favorites ----------- Power Light Ion Engine Engine Light Ion Engine Power Core Light Nuclear Core Propulsion Aluminum Leg Leg Aluminum Leg Wheel Wheel Utility Small Storage Unit Device Improved Terrain Scanner Storage Small Storage Unit Weapon Assault Rifle Energy Gun Small Laser Ballistic Gun Assault Rifle Launcher Grenade Launcher Build | -11 -10 -10 -10 ------- Run | Yrd Mat Min Sub Slots Evolved . | . . . . Power . | . . . . Propulsion . | . . . . Utility . | . . . . Weapon . | . . . . Parts Attached 20 | 6 4 10 . Power 4 | 1 1 2 . Engine 2 | 1 . 1 . Core 2 | . 1 1 . Reactor . | . . . . Propulsion 5 | 2 . 3 . Treads . | . . . . Leg 3 | 2 . 1 . Wheel 2 | . . 2 . Hover . | . . . . Flight . | . . . . Utility 5 | 1 2 2 . Device 2 | . . 2 . Storage 3 | 1 2 . . Processor . | . . . . Hackware . | . . . . Protection . | . . . . Artifact . | . . . . Weapon 6 | 2 1 3 . Energy Gun 3 | . . 3 . Energy Cannon . | . . . . Ballistic Gun 2 | 2 . . . Ballistic Cannon . | . . . . Launcher 1 | . 1 . . Special Weapon . | . . . . Impact Weapon . | . . . . Slashing Weapon . | . . . . Piercing Weapon . | . . . . Special Melee Weapon . | . . . . Unidentified Prototypes . | . . . . Parts Lost 7 | . . 7 . Power 2 | . . 2 . Propulsion 2 | . . 2 . Utility 1 | . . 1 . Weapon 2 | . . 2 . Highest Loss Streak 6 | . . 6 . To Critical Strikes . | . . . . Average Backups 3 | 3 2 4 3 Power . | 1 1 . . Propulsion . | 1 . . . Utility . | . . . . Weapon 2 | 1 1 3 3 Tool/Special . | . . . . Unused Backups 1 | . . . 1 Power . | . . . . Propulsion . | . . . . Utility . | . . . . Weapon 1 | . . . 1 Tool/Special . | . . . . Average Slot Usage (%) 82 | . 85 81 71 Engine 6 | . 7 6 14 Core 6 | . 7 5 . Leg 19 | . 28 13 14 Wheel 3 | . . 6 . Device 2 | . . 3 . Storage 16 | . 14 18 14 Energy Gun 10 | . . 16 14 Ballistic Gun 16 | . 27 9 14 Peak Build Rating 12 | 6 9 12 5 Average Rating 6 | 2 7 7 5 On Entrance 5 | . 6 9 5 Avg Prop Armor Cover (%) . | . . . . Naked Turns . | . . . . Heaviest Build 17 | 12 17 15 11 Greatest Support 20 | 20 20 20 10 Greatest Overweight (x) 2 | 1 . 2 1 Average Overweight (x) . | . . . 1 Largest Inventory Capacity 8 | 8 8 8 8 Average Capacity 7 | 7 7 8 8 Most Carried 8 | 7 4 8 3 Average Carried 3 | 3 2 3 3 Final Capacity 8 | 8 8 8 8 Final Carried 4 | 2 4 3 3 Class Distribution -------------------- 86% | Mutant 13% | Scavenger-Mutant Dominant Class ---------------- Mutant | -10/Materials Mutant | -10/Mines Mutant | -10/Subcaves Resources | -11 -10 -10 -10 ----------- Run | Yrd Mat Min Sub Matter Collected 542 | 247 84 211 . Remotely . | . . . . Salvage Created 360 | . 84 276 . Parts 20 | . 4 16 . Haulers Intercepted . | . . . . Recyclers Shooed 1 | . . 1 . Parts Field Recycled . | . . . . Retrieved Matter . | . . . . Parts Self-Destructed . | . . . . Prevented . | . . . . Parts Restored . | . . . . Kills | -11 -10 -10 -10 ------- Run | Yrd Mat Min Sub Combat Hostiles Destroyed 8 | . 2 6 . Guns 5 | . 2 3 . AOE 3 | . . 3 . Classes Destroyed 3 | . 1 2 . Builder 1 | . . 1 . Tunneler 1 | . . 1 . Grunt 8 | . 2 6 . Best Kill Streak 4 | . 2 4 . Combat Bots Only 4 | . 2 4 . Max Kills in Single Turn 2 | . 1 2 . Gunslinging . | . . . . Exploded 1 | . . 1 . Melee . | . . . . Uniques/NPCs Destroyed . | . . . . Combat | -11 -10 -10 -10 -------- Run | Yrd Mat Min Sub Hostile Shots Fired 69 | . 30 36 3 Missed 13 | . 7 5 1 Hits 56 | . 23 31 2 Projectile 56 | . 23 31 2 Critical Strikes 1 | . . 1 . Damage Taken 1040 | . 333 653 54 Core 262 | . 73 163 26 Absorbed by Shields . | . . . . Core Remaining (%) 100 | 100 . . . Volleys Fired 35 | . 10 25 . Largest 2 | . 2 2 . Hottest 105 | . 40 105 . Shots Fired 65 | . 20 45 . Gun 61 | . 20 41 . Cannon . | . . . . Launcher 4 | . . 4 . Special . | . . . . Kinetic 30 | . 20 10 . Thermal 31 | . . 31 . Explosive 4 | . . 4 . Electromagnetic . | . . . . Robot Hit Streak 3 | . 3 3 . Robot Miss Streak 3 | . 2 3 . Penetration Max . | . . . . Secondary Targets 1 | . . 1 . Max Gunslinging Chain 1 | . . 1 . Shots Hit Robots 27 | . 11 16 . Core Hits 22 | . 5 17 . Critical Kills . | . . . . Critical Parts Destroyed . | . . . . Critical Strikes . | . . . . Melee Attacks . | . . . . Impact . | . . . . Slashing . | . . . . Piercing . | . . . . Sneak Attacks . | . . . . Combat Hostiles . | . . . . Follow-up Attacks . | . . . . Damage Inflicted 532 | . 137 395 . Guns 342 | . 137 205 . Cannons . | . . . . Explosions 181 | . . 181 . Melee . | . . . . Ramming 9 | . . 9 . Kinetic 225 | . 137 88 . Thermal 172 | . . 172 . Explosive 126 | . . 126 . Electromagnetic . | . . . . Impact . | . . . . Slashing . | . . . . Piercing . | . . . . Highest Corruption 3 | . . 3 3 Average Corruption 3 | . . 3 3 Corruption Purged . | . . . . Corruption Blocked . | . . . . Effects 2 | . . 2 . Message Errors 1 | . . 1 . Heat Flow Errors 1 | . . 1 . Overload Shots . | . . . . Overflow Damage 40 | . . 40 . Projectiles . | . . . . Explosions 40 | . . 40 . Melee . | . . . . Knockbacks . | . . . . Impact . | . . . . Kinetic . | . . . . Secondary . | . . . . Self-Inflicted Damage 121 | . . 121 . Shots 3 | . . 3 . Rammed . | . . . . Targets Rammed 4 | . . 4 . Kicked 4 | . . 4 . Crushed . | . . . . Highest Temperature 413 | . 4 413 . Average Temperature 144 | . 2 157 . Received Heat Transfer 483 | . 189 276 18 Effects 2 | . . 2 . Shutdowns 1 | . . 1 . Energy Bleed 1 | . . 1 . Siege Activations . | . . . . Martial Activations . | . . . . Shielding Activations . | . . . . Robots Disrupted . | . . . . Combat Hostiles . | . . . . Robots Corrupted . | . . . . Combat Hostiles . | . . . . Parts Fried . | . . . . Impact Corruptions . | . . . . Robots Melted . | . . . . Combat Hostiles . | . . . . Parts Melted . | . . . . Heat Transferred 312 | . . 312 . Parts Sabotaged . | . . . . Parts Stolen . | . . . . Parts Stripped . | . . . . Power Chain Reactions . | . . . . Alert | -11 -10 -10 -10 ------- Run | Yrd Mat Min Sub Maximum Alert Level . | . . . . Low Security (%) 100 | 100 100 100 . Level 1 . | . . . . Level 2 . | . . . . Level 3 . | . . . . Level 4 . | . . . . Level 5 . | . . . . High Security . | . . . . Max Security . | . . . . Peak Influence 125 | . 50 125 . Initial 7 | . . 7 . Average 32 | . 21 46 . Influence Increases 315 | . 80 235 . Destroy 0b10 Robot/C 160 | . 40 120 . Destroy 0b10 Robot/NC 10 | . . 10 . Destroy Leader 40 | . 10 30 . Disable Machine 45 | . . 45 . Destroy Structure 30 | . . 30 . Lose Combat Pursuer 30 | . 30 . . Influence Decreases 287 | . 60 195 32 Entered New Map 45 | . . 13 32 Time Decay 182 | . 60 122 . Lost Part 60 | . . 60 . Squads Dispatched 1 | . 1 . . Investigation 1 | . 1 . . Extermination . | . . . . Reinforcement . | . . . . Assault . | . . . . Garrison . | . . . . Intercept . | . . . . Searches Triggered . | . . . . Construction Impeded . | . . . . Haulers Reinforced . | . . . . Active Scanning Responses . | . . . . Cargo Convoy Interrupts . | . . . . Stealth | -11 -10 -10 -10 --------- Run | Yrd Mat Min Sub Distress Signals . | . . . . Communications Jammed . | . . . . Distress Signals . | . . . . Times Spotted 15 | . 7 6 2 Peak Tracking Total 4 | . 3 4 2 Tactical Retreats 1 | . 1 . . Traps | -11 -10 -10 -10 ------- Run | Yrd Mat Min Sub Traps Triggered 1 | . 1 . . Indirectly . | . . . . Trap Hack Attempts . | . . . . Triggered . | . . . . Disarmed . | . . . . Reprogrammed . | . . . . Reused . | . . . . Traps Extracted . | . . . . Installed . | . . . . Triggered . | . . . . Machines | -11 -10 -10 -10 ---------- Run | Yrd Mat Min Sub Machines Disabled 3 | . . 3 . Max in Single Turn 3 | . . 3 . Machines Repaired . | . . . . Machines Dismantled . | . . . . Machines Sabotaged . | . . . . Overloaded Fab Kills . | . . . . Hacking | -11 -10 -10 -10 --------- Run | Yrd Mat Min Sub Machines Accessed 1 | . 1 . . Terminals . | . . . . Fabricators . | . . . . Repair Stations . | . . . . Recycling Units 1 | . 1 . . Scanalyzers . | . . . . Garrison Access . | . . . . Total Hacks 1 | . 1 . . Successful 1 | . 1 . . Failed . | . . . . Catastrophic . | . . . . Database Lockouts . | . . . . Manual . | . . . . Terminals . | . . . . Fabricators . | . . . . Repair Stations . | . . . . Recycling Units 1 | . 1 . . Scanalyzers . | . . . . Garrison Access . | . . . . Terminal Hacks . | . . . . Fabricator Hacks . | . . . . Repair Station Hacks . | . . . . Recycling Unit Hacks 1 | . 1 . . Process 1 | . 1 . . Scanalyzer . | . . . . Garrison Access Hacks . | . . . . Unauthorized Hacks . | . . . . Terminals . | . . . . Fabricators . | . . . . Repair Stations . | . . . . Recycling Units . | . . . . Scanalyzers . | . . . . Garrison Access . | . . . . Data Cores Recovered . | . . . . Used . | . . . . Hacking Detections 1 | . 1 . . Full Trace Events . | . . . . Feedback Events . | . . . . Feedback Blocked . | . . . . Robot Schematics Acquired . | . . . . Robots Built . | . . . . Authchips . | . . . . Time . | . . . . Total Robot Build Rating . | . . . . Part Schematics Acquired . | . . . . Parts Built . | . . . . Authchips . | . . . . Time . | . . . . Total Part Build Rating . | . . . . Part Studies Acquired . | . . . . Parts Repaired . | . . . . Time . | . . . . Parts Recycled . | . . . . Recycled Matter 20 | . 20 . . Retrieved Matter . | . . . . Retrieved Components . | . . . . Parts Scanalyzed . | . . . . Part Schematics Acquired . | . . . . Parts Damaged . | . . . . Bothacking | -11 -10 -10 -10 ------------ Run | Yrd Mat Min Sub Used RIF Installer . | . . . . Robots Hacked . | . . . . Non-combat . | . . . . Combat . | . . . . Robot Hacks Applied . | . . . . Relay Couplers Released . | . . . . Fabnet Peak Effective % . | . . . . Robots Rewired . | . . . . Allies Hacked . | . . . . Hacks Repelled . | . . . . Allies | -11 -10 -10 -10 -------- Run | Yrd Mat Min Sub Total Allies . | . . . . Largest Group . | . . . . Highest-Rated Group . | . . . . Highest-Rated Ally . | . . . . Total Orders . | . . . . Ally Attacks . | . . . . Total Damage . | . . . . Kills . | . . . . Allies Corrupted . | . . . . Allies Melted . | . . . . Intel | -11 -10 -10 -10 ------- Run | Yrd Mat Min Sub Active Infowar (turns) 81 | . . 81 . Terrain 81 | . . 81 . Robot Analysis Total . | . . . . Derelict Logs Recovered 1 | . . . 1 Drone Launches . | . . . . Drone Recoveries . | . . . . Exploration | -11 -10 -10 -10 ------------- Run | Yrd Mat Min Sub Turns Passed 558 | 57 189 294 18 Spaces Moved 333 | 51 121 151 10 Core 37 | 33 . 4 . Treads . | . . . . Legs 241 | 18 121 92 10 Wheels 55 | . . 55 . Hover . | . . . . Flight . | . . . . Fastest Speed 50 | 50 120 80 190 Average Speed 120 | 87 120 126 190 Slowest Speed 190 | 120 120 190 190 Overloaded Moves . | . . . . Propulsion Burnouts . | . . . . Robots Hopped . | . . . . Potential Cave-ins 3 | . . 3 . Cave-ins Triggered 1 | . . 1 . Exploration Rate (%) 14 | 3 29 24 2 Regions Visited 3 Branch Regions 2 Pre-discovered Areas . | . . . . Known Exits Taken . | . . . . Unknown Exits Taken 3 | 1 1 1 . Scrap Searched 1 | . . 1 . Spaces Dug . | . . . . Terrain Destroyed 40 | . . 40 . Melee . | . . . . Projectile . | . . . . AOE 40 | . . 40 . Terrain Rammed . | . . . . Walls Destroyed . | . . . . Machines Disabled . | . . . . Actions | -11 -10 -10 -10 --------- Run | Yrd Mat Min Sub Total 426 | 63 147 206 10 Wait . | . . . . Move 330 | 50 120 150 10 Hop . | . . . . Pick Up 21 | 7 6 8 . Fast Attach 1 | 1 . . . Attach 20 | 5 6 9 . Detach 3 | . 2 1 . Swap 5 | . . 5 . Drop 7 | . 3 4 . Fire 35 | . 10 25 . Melee . | . . . . Ram . | . . . . Kick 4 | . . 4 . Crush . | . . . . Escape Stasis . | . . . . Rewire . | . . . . Trap . | . . . . Miscellaneous . | . . . . Route ------- -11/Scrapyard -10/Materials -10/Mines -10/Subcaves History --------- Turn | Location | Event 8 | -11/Scrapyard | Discovered new exit (range 15) 58 | -11/Scrapyard | Entered Materials 224 | -10/Materials | Discovered new exit (range 12) 247 | -10/Materials | Entered Mines 311 | -10/Mines | Build established: Mutant 398 | -10/Mines | Core integrity fell below 50% 421 | -10/Mines | Crushed by falling debris 421 | -10/Mines | Core integrity fell below 20% 452 | -10/Mines | Lost 6 parts (1p2n1u2w) 526 | -10/Mines | Discovered new exit (range 6) 541 | -10/Mines | Entered Subcaves 557 | -10/Subcaves | Learned Materials interactive machine intel 559 | -10/Subcaves | Destroyed by RF-NG2(R) with Subdweller Beam Cannon Last Messages --------------- Kicked U-05 Engineer. U-05 Engineer destroyed. Acquired 19 matter. R-06 Scavenger collects Welding Torch. Kicked R-06 Scavenger. Z1 XWQ8ACYLMK/QDV2#WH=Z EXIT=FOUND LOCATION=UNKNOWN AMBIENT_HEAT=-10 GOAL=ESCAPE 5T-UOK(h): "Hey you don't look like the usual menacing locals. I'm on point searching for advanced tech we've heard is being developed in secret down here, seen anything like that?" HV Slug penetrates Twisted Machinery. 5T-UOK(h) drops a Scrap Shield: "Protect yourself with this!" Acquired derelict log, extracted data. Data stored: Materials interactive machine intel. Map ----- +----------------------------------------------------+ | ?????????????????????????????????????????????????? | | ?????????????????????????????????????????????????? | | ?????????????????????????????????????????????????? | | ?????????????????????????????????????????????????? | | ?????????????????????????????????????????????????? | | ?????????????????????????????????????????????????? | | ?????????????????????????????????????????????????? | | ?????????????????????????????????????????????????? | | ?????????????????????????????????????????????????? | | ?????????????????????????????????????????????????? | | ?????????????????????????????????????????????????? | | ?????????????????????????????????????????????????? | | ?????????????????????????????###? ??????????????? | | ???????????????????????????? < ## ??????????????? | | ???????????????????????????? ?????????????? | | ???????????????????????????? ??????????????? | | ???????????????????????????# ??????????????? | | ??????????????????????????# ????????????????? | | ????????????????????????## #?????????????????? | | ????????????????????????# ???????????????????? | | ????????????????????##### #????????????????????? | | ???????????????????## !## #????????????????????? | | ???????????????????# #????????????????????? | | ??????????????????## ###### ##???????????? | | ?????????????????## #???????????? | | ?????????????????# h@ "#???????????? | | ?????????????????### # ## ""???????????? | | ???????????????????## R #??????????????????? | | ????????????????????##### ##??????????????????? | | ????????????????????????##R #???????????????????? | | ?????????????????????????? ##???????????????????? | | ??????????????????????????" #????????????????????? | | ?????????????????????????? ????????????????????? | | ??????????????????????????" ???????????????????? | | ??????????????????????????"" ???????????????????? | | ??????????????????????????""" ??????????????????? | | ????????????????????????????"" #?????????????????? | | ????????????????????????????# ?????????????????? | | ???????????????????????????????"?????????????????? | | ?????????????????????????????????????????????????? | | ?????????????????????????????????????????????????? | | ?????????????????????????????????????????????????? | | ?????????????????????????????????????????????????? | | ?????????????????????????????????????????????????? | | ?????????????????????????????????????????????????? | | ?????????????????????????????????????????????????? | | ?????????????????????????????????????????????????? | | ?????????????????????????????????????????????????? | | ?????????????????????????????????????????????????? | | ?????????????????????????????????????????????????? | +----------------------------------------------------+ Best States ------------- Heat Dissipation 25 Energy Generation 14 Energy Capacity 160 Matter Stores 312 Matter Capacity 400 Sight Range 16 Terrain Scan Range 16 Terrain Scan Density 10 Evasion (%) 55 Item Schematics ----------------- None Robot Schematics ------------------ None Fabricated ------------ Nothing Repaired ---------- Nothing Studied --------- None Alien Tech Used ----------------- None Achievements -------------- DATA ERROR: Steam Global Achievement% For Emergencies Only Let's See Who's Tougher Organ Harvest There's More Where That Came From Challenges ------------ None Game ------ Seed HugeRegenerativeSword Manual? 0 Play Time 00:10:45 Cumulative 3.3 hours Start 2026.01.01 @ 21:47:56 End 2026.01.01 @ 21:59:21 Sessions 1 Manual Loads 0 Difficulty Rogue Special Mode None Game No. 7 Rogue 7 Adventurer 0 Explorer 0 Win Type - Total 0 Types 0/0/0/0/0/0/0/0/0/0 Lore% 0 Gallery% 6 Achievement% 6 Wizard Run 0 Options --------- Layout 1 ASCII 0 Keyboard 0 Movement Mouse Keybinds 0 Fullscreen 2 Font 24/Smallcaps Map View 50x35 Zoom Use 0% Tactical HUD 0 Map Filters NONE Filters NONE Steam 1 RUN: b89bf774-e5db-47ab-af80-f5fb15eb0de9